bitfinex-derivatives/quotes_BTCF0:USTF0_20260221
["timestamp","ask_amount","ask_price","bid_price","bid_amount"]
[1771689655587,0.014573,68644.0,68631.0,0.27479617]
[1771689655894,0.014574,68641.0,68636.0,0.014575]
[1771689657493,0.014574,68640.0,68633.0,0.014575]
[1771689657683,0.014574,68640.0,68631.0,0.00072853]
[1771689658199,0.014574,68640.0,68635.0,0.014575]
[1771689658896,0.014574,68641.0,68633.0,0.014575]
[1771689659397,0.014574,68640.0,68635.0,0.014575]
[1771689659695,0.014574,68642.0,68636.0,0.014575]
[1771689659897,0.014574,68642.0,68635.0,0.014575]
[1771689660090,0.014574,68642.0,68636.0,0.014575]
[1771689660297,0.014574,68642.0,68637.0,0.014575]
[1771689660502,0.014574,68639.0,68620.0,0.014578]
[1771689660802,0.014575,68636.0,68631.0,0.014576]
[1771689661199,0.014575,68636.0,68630.0,0.014576]
[1771689661200,0.014575,68635.0,68630.0,0.014576]
[1771689661997,0.22476562,68651.0,68635.0,0.014575]
[1771689662602,0.21090615,68639.0,68607.0,0.27406764]
[1771689662804,0.014577,68627.0,68617.0,0.014579]
[1771689663101,0.014577,68627.0,68621.0,0.014578]
[1771689663498,0.014577,68627.0,68622.0,0.014578]
[1771689663696,0.014577,68625.0,68619.0,0.014578]
[1771689664200,0.014578,68624.0,68618.0,0.014579]
[1771689664504,0.014578,68623.0,68618.0,0.014579]
[1771689664710,0.014577,68626.0,68616.0,0.014579]
[1771689664711,0.014578,68622.0,68616.0,0.014579]
[1771689665002,0.014578,68623.0,68618.0,0.014579]
[1771689665196,0.014577,68625.0,68620.0,0.014578]
[1771689665704,0.014578,68624.0,68619.0,0.014579]
[1771689666406,0.014578,68624.0,68618.0,0.014579]
[1771689666606,0.014578,68624.0,68619.0,0.014579]
[1771689667199,0.014577,68628.0,68622.0,0.014578]
[1771689667402,0.014577,68627.0,68622.0,0.014578]
[1771689667603,0.014577,68627.0,68620.0,0.014578]
[1771689668711,0.014577,68627.0,68622.0,0.029156]
[1771689668902,0.014577,68627.0,68622.0,0.014578]
[1771689669208,0.014577,68628.0,68622.0,0.014578]
[1771689669809,0.014577,68627.0,68620.0,0.014578]
[1771689670113,0.25050648,68637.0,66680.0,0.03664203]
[1771689670114,0.014581,68607.0,68601.0,0.014582]
[1771689670301,0.014581,68609.0,68601.0,0.014582]
[1771689670502,0.01458,68611.0,68604.0,0.014582]
[1771689671006,0.014581,68610.0,68604.0,0.014582]
[1771689671307,0.01458,68613.0,68607.0,0.014581]
[1771689671708,0.01458,68613.0,68597.0,0.014583]
[1771689671709,0.2399086,68613.0,68577.0,0.29189364]
[1771689672005,0.72562231,68637.0,68534.0,0.86722294]
[1771689672006,0.2399106,68595.0,68581.0,0.014587]
[1771689672210,0.014583,68599.0,68587.0,0.014585]
[1771689672211,0.014584,68596.0,68587.0,0.014585]
[1771689672509,0.014585,68587.0,68580.0,0.014587]
[1771689672702,0.014585,68587.0,68579.0,0.014587]
[1771689672703,0.00012429,68586.0,68581.0,0.014587]
[1771689672903,0.00012429,68586.0,68573.0,0.29189364]
[1771689673106,0.00012429,68586.0,68582.0,0.014586]
[1771689673311,0.014584,68593.0,68581.0,0.014587]
[1771689673312,0.014584,68593.0,68581.0,0.001]
[1771689673514,0.014584,68593.0,68586.0,0.014586]
[1771689673712,1.38110562,68674.0,68557.0,0.014592]
[1771689673713,0.22845382,68584.0,68557.0,0.014592]
[1771689673911,0.014586,68586.0,68566.0,0.29189364]
[1771689674109,0.014586,68586.0,68552.0,0.37051826]
[1771689674110,0.24303682,68600.0,68569.0,0.29189364]
[1771689674410,0.014583,68599.0,68578.0,0.014587]
[1771689674610,0.014584,68593.0,68583.0,0.014586]
[1771689674800,0.014583,68598.0,68583.0,0.014586]
[1771689674999,0.014583,68597.0,68589.0,0.014585]
[1771689675510,0.014582,68604.0,68588.0,0.014585]
[1771689675709,0.014586,68586.0,68570.0,0.014589]
[1771689675909,0.21852921,68595.0,68581.0,0.014587]
[1771689675910,0.014585,68589.0,68581.0,0.014587]
[1771689676102,0.014585,68587.0,68574.0,0.014588]
[1771689676309,0.014586,68586.0,68578.0,0.014587]
[1771689676614,0.014586,68586.0,68579.0,0.014587]
[1771689676811,0.014586,68586.0,68573.0,0.014588]
[1771689676812,0.014585,68587.0,68573.0,0.014588]
[1771689677116,0.014587,68581.0,68573.0,0.014588]
[1771689677617,0.014587,68580.0,68573.0,0.014588]
[1771689678005,0.014587,68580.0,68570.0,0.014589]
[1771689678200,0.014587,68579.0,68572.0,0.014589]
[1771689678919,0.014587,68578.0,68570.0,0.014589]
[1771689679118,0.23710997,68586.0,68572.0,0.014588]
[1771689679119,0.014587,68580.0,68572.0,0.014588]
[1771689679313,0.014587,68579.0,68572.0,0.014589]
[1771689679503,0.014588,68575.0,68563.0,0.01459]
[1771689679908,0.014588,68575.0,68568.0,0.014589]
[1771689680208,0.01459,68567.0,68553.0,0.29189364]
[1771689680409,0.014589,68570.0,68564.0,0.01459]
[1771689680614,0.014588,68573.0,68566.0,0.01459]
[1771689680814,0.014588,68574.0,68567.0,0.014589]
[1771689681009,0.014587,68578.0,68570.0,0.014589]
[1771689681208,0.014589,68571.0,68563.0,0.01459]
[1771689681517,0.014589,68571.0,68540.0,0.85893303]
[1771689681518,0.014591,68563.0,68544.0,0.014594]
[1771689681715,0.014594,68548.0,68547.0,3.4e-07]
[1771689681913,0.16733568,68553.0,68531.0,0.29189364]
[1771689682315,0.014593,68552.0,68538.0,0.014596]
[1771689682512,0.014593,68551.0,68540.0,0.014595]
[1771689682706,0.014592,68557.0,68546.0,0.014594]
[1771689682908,0.00011538,68556.0,68550.0,0.014593]
[1771689683109,0.014591,68559.0,68549.0,0.014593]
[1771689683411,0.014591,68559.0,68530.0,0.014597]
[1771689683412,0.014595,68543.0,68524.0,0.30649264]
[1771689683607,0.014593,68552.0,68534.0,0.014597]
[1771689683813,0.014595,68542.0,68520.0,0.29189364]
[1771689684026,7.396e-05,68541.0,68512.0,0.29189364]
[1771689684320,7.396e-05,68541.0,68490.0,0.03636656]
[1771689684321,0.014596,68536.0,68529.0,0.014598]
[1771689684513,0.014595,68540.0,68529.0,0.014598]
[1771689684719,0.48154896,68541.0,68522.0,0.29189364]
[1771689685026,0.48154896,68541.0,68511.0,0.014601]
[1771689685027,0.09495229,68529.0,68511.0,0.014601]
[1771689685220,0.014598,68530.0,68506.0,0.29189364]
[1771689685413,0.0146,68518.0,68510.0,0.014602]
[1771689685807,0.014599,68521.0,68506.0,0.29189364]
[1771689686008,0.00017824,68520.0,68514.0,0.014601]
[1771689686324,0.014598,68527.0,68510.0,0.29189364]
[1771689686523,0.014599,68525.0,68518.0,0.0146]
[1771689687126,0.001,68520.0,68518.0,0.0146]
[1771689687524,0.46692,68529.0,68510.0,0.29189364]
[1771689687720,0.014596,68538.0,68526.0,0.014598]
[1771689688022,0.014595,68542.0,68530.0,0.014597]
[1771689688226,0.46704,68548.0,68530.0,0.014597]
[1771689688227,0.014595,68543.0,68531.0,0.014597]
[1771689688523,0.014595,68542.0,68535.0,0.014596]
[1771689688726,0.014595,68542.0,68536.0,0.014596]
[1771689688917,0.09940554,68546.0,68519.0,0.29189364]
[1771689689115,0.46704,68548.0,68522.0,0.014599]
[1771689689116,0.001,68525.0,68522.0,0.014599]
[1771689689318,0.014595,68542.0,68513.0,0.29189364]
[1771689689624,0.014595,68542.0,68497.0,0.730241]
[1771689689625,0.13711308,68539.0,68520.0,0.014599]
[1771689689920,0.014598,68528.0,68520.0,0.0146]
[1771689690126,0.014598,68530.0,68522.0,0.014599]
[1771689690316,0.014598,68529.0,68522.0,0.014599]
[1771689690516,0.014597,68531.0,68522.0,0.014599]
[1771689690715,0.014598,68527.0,68520.0,0.0146]
[1771689691420,0.014596,68537.0,68516.0,0.29189364]
[1771689691421,0.014597,68534.0,68526.0,0.014598]
[1771689691622,0.014597,68534.0,68524.0,0.014599]
[1771689691623,0.014597,68532.0,68523.0,0.014599]
[1771689691822,0.014596,68537.0,68527.0,0.014598]
[1771689692127,0.014596,68539.0,68531.0,0.014597]
[1771689692329,0.014597,68535.0,68527.0,0.029196]
[1771689692622,0.001,68529.0,68527.0,0.014598]
[1771689692823,0.014596,68536.0,68529.0,0.014598]
[1771689693017,0.481714,68547.0,68527.0,0.014598]
[1771689693018,0.014597,68533.0,68527.0,0.014598]
[1771689693217,0.014597,68534.0,68527.0,0.014598]
[1771689693522,0.014596,68538.0,68531.0,0.015597]
[1771689693720,0.46712,68547.0,68536.0,0.014596]
[1771689693922,0.46712,68547.0,68520.0,0.014599]
[1771689693923,0.12496076,68585.0,68542.0,0.29189364]
[1771689694119,0.12496076,68585.0,68567.0,0.01459]
[1771689694321,0.014585,68587.0,68563.0,0.29189364]
[1771689694626,0.014585,68588.0,68575.0,0.014588]
[1771689694821,0.014586,68586.0,68576.0,0.014588]
[1771689695028,0.014585,68591.0,68576.0,0.014588]
[1771689695029,0.014586,68583.0,68576.0,0.014588]
[1771689695222,0.46716,68593.0,68556.0,0.29189364]
[1771689695223,0.11972148,68590.0,68556.0,0.29189364]
[1771689695429,0.014585,68588.0,68560.0,0.014591]
[1771689695631,0.01459,68566.0,68557.0,0.014592]
[1771689695831,0.014589,68568.0,68560.0,0.014591]
[1771689696130,0.01459,68567.0,68560.0,0.014591]
[1771689697129,0.01459,68567.0,68497.0,1.27430754]
[1771689697130,0.014597,68531.0,68530.0,2e-08]
[1771689697530,0.014598,68529.0,68518.0,0.0146]
[1771689697726,0.014598,68529.0,68516.0,0.0146]
[1771689697727,0.014599,68526.0,68517.0,0.0146]
[1771689698029,0.014598,68528.0,68521.0,0.014599]
[1771689698231,0.014598,68526.0,68520.0,0.0146]
[1771689698428,0.014599,68524.0,68511.0,0.31172312]
[1771689698729,0.00018706,68525.0,68517.0,0.0146]
[1771689698927,0.00018706,68525.0,68486.0,0.3118867]
[1771689698928,0.730017,68519.0,68486.0,0.3118867]
[1771689699129,0.730017,68519.0,68486.0,0.00016358]
[1771689699130,0.08280811,68510.0,68486.0,0.00016358]
[1771689699328,0.014606,68489.0,68486.0,0.00016358]
[1771689699524,0.01484,68488.0,68483.0,0.014607]
[1771689699724,0.01484,68488.0,68481.0,0.01533813]
[1771689699725,0.01484,68487.0,68484.0,0.014607]
[1771689699926,0.01484,68486.0,68485.0,0.014607]
[1771689700125,0.01484,68486.0,68481.0,0.00073013]
[1771689700325,0.01484,68486.0,68483.0,0.014607]
[1771689700524,0.4672,68505.0,68481.0,0.00073013]
[1771689700726,0.014605,68495.0,68487.0,0.014607]
[1771689700926,0.014605,68495.0,68483.0,0.014607]
[1771689700927,0.01484,68494.0,68483.0,0.014607]
[1771689701128,0.01484,68494.0,68487.0,0.014607]
[1771689701324,0.01484,68494.0,68489.0,0.014606]
[1771689701524,0.4672,68505.0,68481.0,0.00073013]
[1771689701525,0.014602,68512.0,68493.0,0.31172312]
[1771689701721,0.014601,68514.0,68506.0,0.014603]
[1771689701922,0.0146,68517.0,68509.0,0.014602]
[1771689702132,0.014601,68515.0,68508.0,0.014602]
[1771689702432,0.4672,68524.0,68508.0,0.014602]
[1771689702433,0.014598,68529.0,68519.0,0.0146]
[1771689702638,0.014599,68524.0,68516.0,0.0146]
[1771689702937,0.014599,68524.0,68516.0,0.01074224]
[1771689703124,0.014599,68524.0,68506.0,0.014602]
[1771689703125,0.01492331,68525.0,68466.0,0.014611]
[1771689703126,0.09724487,68488.0,68466.0,0.014611]
[1771689703432,0.09724487,68488.0,68460.0,0.00072977]
[1771689703433,0.014609,68475.0,68460.0,0.00072977]
[1771689703620,4.331e-05,68474.0,68460.0,0.31245289]
[1771689703824,4.331e-05,68474.0,68460.0,0.380659]
[1771689703825,0.00736,68474.0,68460.0,0.380659]
[1771689704133,0.01488,68473.0,68461.0,0.31172312]
[1771689704336,0.73649849,68497.0,68461.0,0.31172312]
[1771689704337,0.01488,68472.0,68461.0,0.31172312]
[1771689704832,0.13376,68496.0,68461.0,0.31172312]
[1771689704833,0.01488,68473.0,68461.0,0.31172312]
[1771689705429,0.01488,68474.0,68461.0,0.31172312]
[1771689705639,0.014608,68482.0,68461.0,0.31172312]
[1771689705932,0.014608,68480.0,68461.0,0.31172312]
[1771689706127,0.01488,68489.0,68471.0,0.31172312]
[1771689706327,0.014607,68484.0,68471.0,0.31172312]
[1771689706730,0.01488,68489.0,68471.0,0.31172312]
[1771689706926,0.014608,68482.0,68471.0,0.31172312]
[1771689707126,0.01488,68481.0,68471.0,0.31172312]
[1771689707636,0.01488,68481.0,68471.0,0.31272312]
[1771689707840,0.014606,68492.0,68471.0,0.31272312]
[1771689708033,0.01488,68491.0,68471.0,0.31172312]
[1771689708340,0.014606,68489.0,68471.0,0.31172312]
[1771689708546,0.014606,68488.0,68471.0,0.31172312]
[1771689708834,0.01488,68487.0,68471.0,0.31172312]
[1771689709037,0.029487,68487.0,68471.0,0.31172312]
[1771689709242,0.01461,68473.0,68454.0,0.21441992]
[1771689709537,0.01488,68472.0,68455.0,0.01866974]
[1771689709739,0.01488,68472.0,68456.0,0.01866974]
[1771689709932,0.01488,68472.0,68457.0,0.01866974]
[1771689710129,0.75145746,68481.0,68461.0,0.21203581]
[1771689710130,0.014608,68481.0,68461.0,0.21203581]
[1771689710437,0.01488,68480.0,68461.0,0.21203581]
[1771689710625,0.01488,68479.0,68461.0,0.21203581]
[1771689710827,0.32443482,68478.0,68436.0,1.7977841]
[1771689711025,0.32443482,68478.0,68415.0,0.72449923]
[1771689711026,0.014609,68477.0,68439.0,0.18207013]
[1771689711229,0.014612,68461.0,68449.0,0.15295205]
[1771689711434,0.014612,68461.0,68440.0,0.21434556]
[1771689711435,0.014612,68462.0,68441.0,0.17464953]
[1771689711632,0.014611,68465.0,68441.0,0.18926553]
[1771689711835,0.87031149,68584.0,68453.0,0.14940455]
[1771689711836,0.014609,68477.0,68453.0,0.14940455]
[1771689712036,0.01500879,68476.0,68453.0,0.14940455]
[1771689712236,0.01488,68475.0,68453.0,0.14940455]
[1771689712436,0.01461,68472.0,68453.0,0.14940455]
[1771689712632,0.01488,68472.0,68461.0,0.15305025]
[1771689712842,0.33931482,68474.0,68454.0,0.14608136]
[1771689713136,0.33931482,68474.0,68446.0,0.15203884]
[1771689713137,0.014612,68461.0,68446.0,0.15203884]
[1771689713440,0.01488,68460.0,68448.0,0.001]
[1771689713837,0.01488,68460.0,68442.0,0.014616]
[1771689714142,0.01488,68460.0,68441.0,0.014616]
[1771689714534,0.014612,68461.0,68436.0,0.014617]
[1771689714535,0.014609,68475.0,68450.0,0.19972856]
[1771689714744,0.014611,68467.0,68450.0,0.19972856]
[1771689715033,0.01461,68470.0,68444.0,0.14830565]
[1771689715242,0.014611,68467.0,68448.0,0.014615]
[1771689715447,0.014611,68469.0,68450.0,0.21434356]
[1771689715737,0.74574397,68481.0,68455.0,0.014613]
[1771689715937,0.014609,68476.0,68456.0,0.014613]
[1771689716138,0.014607,68487.0,68457.0,0.014613]
[1771689716139,0.014609,68477.0,68457.0,0.014613]
[1771689716542,0.014607,68487.0,68458.0,0.014613]
[1771689716543,0.014608,68482.0,68458.0,0.014613]
[1771689716745,0.014609,68478.0,68457.0,0.014613]
[1771689716939,0.014609,68475.0,68458.0,0.014613]
[1771689717136,0.014609,68475.0,68451.0,0.014614]
[1771689717137,0.32443482,68474.0,68451.0,0.014614]
[1771689717442,0.32443482,68474.0,68435.0,0.02063015]
[1771689717443,0.014613,68456.0,68435.0,0.02063015]
[1771689717737,0.014613,68456.0,68436.0,0.14606536]
[1771689717738,0.32443482,68456.0,68436.0,0.14606536]
[1771689717942,0.014615,68448.0,68436.0,0.14606536]
[1771689718144,0.014615,68447.0,68435.0,0.00601215]
[1771689718442,0.014615,68450.0,68436.0,0.014618]
[1771689718634,0.014614,68451.0,68437.0,0.014617]
[1771689718834,0.25182383,68459.0,68437.0,0.014617]
[1771689719031,0.014614,68454.0,68439.0,0.014617]
[1771689719235,0.014613,68455.0,68435.0,0.00601215]
[1771689719436,0.014613,68458.0,68445.0,0.014616]
[1771689719941,2.0711285,68473.0,68447.0,0.014615]
[1771689719942,0.014612,68461.0,68447.0,0.014615]
[1771689720134,0.014612,68461.0,68448.0,0.014615]
[1771689720339,0.014611,68467.0,68446.0,0.014615]
[1771689720534,0.014612,68462.0,68442.0,0.014616]
[1771689720742,0.014612,68464.0,68449.0,0.014615]
[1771689720941,0.014611,68467.0,68448.0,0.014615]
[1771689721247,0.014612,68461.0,68446.0,0.014615]
[1771689721543,1.09808216,68474.0,68446.0,0.014615]
[1771689721544,0.014612,68463.0,68452.0,0.014614]
[1771689721845,0.014612,68462.0,68450.0,0.014614]
[1771689722045,0.014612,68461.0,68450.0,0.014614]
[1771689722247,0.014612,68462.0,68450.0,0.014614]
[1771689722449,0.014612,68461.0,68450.0,0.014614]
[1771689722639,0.014611,68468.0,68447.0,0.014615]
[1771689722843,0.014611,68466.0,68454.0,0.014614]
[1771689723039,0.014611,68466.0,68440.0,0.30286954]
[1771689723040,0.01461,68472.0,68450.0,0.19972856]
[1771689723250,0.01461,68473.0,68460.0,0.014612]
[1771689723445,0.014609,68477.0,68462.0,0.014612]
[1771689723650,0.014609,68475.0,68452.0,0.014614]
[1771689723848,0.014608,68481.0,68470.0,0.01461]
[1771689724149,0.014608,68481.0,68471.0,0.01461]
[1771689724352,0.014608,68483.0,68472.0,0.01461]
[1771689724553,0.014607,68488.0,68473.0,0.01461]
[1771689724753,0.014606,68490.0,68478.0,0.014609]
[1771689724952,0.014606,68492.0,68480.0,0.014608]
[1771689725147,0.014605,68497.0,68475.0,0.014609]
[1771689725338,0.014606,68493.0,68479.0,0.014608]
[1771689725544,0.36649605,68502.0,68477.0,0.014609]
[1771689725545,0.014606,68489.0,68477.0,0.014609]
[1771689725846,0.014604,68499.0,68477.0,0.014609]
[1771689725847,0.014606,68488.0,68479.0,0.014608]
[1771689726152,0.014606,68491.0,68482.0,0.014608]
[1771689726346,2.36830279,68512.0,68480.0,0.19972856]
[1771689726549,0.014604,68502.0,68482.0,0.014608]
[1771689726747,0.014604,68501.0,68492.0,0.014605]
[1771689727052,0.014605,68497.0,68489.0,0.014606]
[1771689727440,0.014604,68500.0,68490.0,0.014606]
[1771689727647,0.014604,68500.0,68492.0,0.014606]
[1771689727846,0.014604,68501.0,68493.0,0.014605]
[1771689728046,0.014603,68505.0,68493.0,0.014605]
[1771689728247,0.014604,68502.0,68485.0,0.014607]
[1771689728446,0.014603,68505.0,68486.0,0.014607]
[1771689728645,0.014603,68504.0,68495.0,0.014605]
[1771689728845,0.014603,68503.0,68495.0,0.014605]
[1771689729043,0.014604,68502.0,68494.0,0.014605]
[1771689729249,0.014603,68502.0,68494.0,0.014605]
[1771689729654,0.014604,68501.0,68493.0,0.014605]
[1771689729853,0.014604,68502.0,68494.0,0.014605]
[1771689730053,0.014604,68501.0,68493.0,0.014605]
[1771689730560,0.014603,68503.0,68496.0,0.014605]
[1771689730753,0.014603,68503.0,68495.0,0.014605]
[1771689731152,0.014603,68506.0,68494.0,0.014605]
[1771689731464,0.4181505,68509.0,68487.0,0.014606]
[1771689731465,0.014605,68495.0,68487.0,0.014606]
[1771689731761,0.014605,68495.0,68473.0,0.43297198]
[1771689731762,0.014605,68497.0,68489.0,0.014606]
[1771689731960,0.014605,68497.0,68473.0,0.52032813]
[1771689731961,0.44292366,68493.0,68475.0,0.1459854]
[1771689732260,0.44292366,68485.0,68453.0,0.43297198]
[1771689732460,0.01461,68470.0,68454.0,0.01837033]
[1771689732663,0.01461,68470.0,68444.0,0.10196315]
[1771689732664,0.44292366,68469.0,68450.0,0.014615]
[1771689732967,0.25241836,68485.0,68449.0,0.1459854]
[1771689732968,0.014612,68461.0,68451.0,0.01845422]
[1771689733161,0.014614,68454.0,68447.0,0.014615]
[1771689733367,0.014613,68458.0,68453.0,0.001]
[1771689733561,0.014614,68453.0,68447.0,0.014615]
[1771689733760,0.014614,68453.0,68445.0,0.014615]
[1771689733962,0.014613,68456.0,68449.0,0.014615]
[1771689734261,0.44292366,68454.0,68431.0,0.00735754]
[1771689734460,0.014616,68446.0,68439.0,0.014617]
[1771689734658,0.014616,68446.0,68440.0,0.014617]
[1771689734868,0.014616,68444.0,68437.0,0.014617]
[1771689735067,0.014616,68443.0,68437.0,0.014617]
[1771689735265,0.44292366,68450.0,68435.0,0.00601215]
[1771689735464,0.44292366,68450.0,68431.0,0.00735754]
[1771689735465,0.014617,68440.0,68432.0,0.014618]
[1771689736064,0.44292366,68450.0,68431.0,0.00735754]
[1771689736065,0.45753266,68477.0,68439.0,0.13981388]
[1771689736261,0.44292366,68466.0,68434.0,0.57908002]
[1771689736464,0.72683284,68488.0,68434.0,0.57908002]
[1771689736465,0.44292366,68451.0,68436.0,0.014617]
[1771689736767,0.44292366,68451.0,68437.0,0.014617]
[1771689736768,0.014616,68445.0,68437.0,0.014617]
[1771689737074,0.014616,68446.0,68437.0,0.014617]
[1771689737263,0.014615,68450.0,68439.0,0.014617]
[1771689737464,0.014615,68449.0,68439.0,0.014617]
[1771689737664,0.44292366,68451.0,68436.0,0.014617]
[1771689737665,0.44292366,68451.0,68446.0,0.014615]
[1771689739063,0.44392366,68451.0,68444.0,0.014616]
[1771689739267,0.45853766,68451.0,68441.0,0.014616]
[1771689739466,0.014615,68449.0,68442.0,0.014616]
[1771689739669,0.014615,68449.0,68443.0,0.014616]
[1771689739870,0.014615,68449.0,68442.0,0.014616]
[1771689740076,0.44392366,68451.0,68433.0,0.0057022]
[1771689740282,0.014615,68450.0,68443.0,0.014616]
[1771689740781,0.014615,68450.0,68438.0,0.014617]
[1771689740967,0.45753766,68451.0,68445.0,0.014616]
[1771689741174,0.014613,68460.0,68435.0,0.014618]
[1771689741369,0.014613,68459.0,68435.0,0.014618]
[1771689741676,0.014612,68460.0,68453.0,0.014614]
[1771689741871,0.014613,68458.0,68450.0,0.014614]
[1771689742072,0.014613,68458.0,68449.0,0.014615]
[1771689742578,0.014613,68458.0,68448.0,0.014615]
[1771689742762,0.014613,68458.0,68450.0,0.014614]
[1771689743165,0.014613,68458.0,68451.0,0.014614]
[1771689743772,0.014613,68457.0,68451.0,0.014614]
[1771689744083,0.001,68458.0,68453.0,0.014614]
[1771689744272,0.014614,68453.0,68428.0,0.00653778]
[1771689744468,0.014614,68452.0,68445.0,0.014615]
[1771689744778,0.014614,68452.0,68445.0,0.014616]
[1771689744973,0.44292366,68454.0,68428.0,0.00653778]
[1771689745170,0.45753866,68449.0,68437.0,0.014617]
[1771689745371,0.44292366,68449.0,68444.0,0.014616]
[1771689745574,0.44292366,68449.0,68443.0,0.014616]
[1771689746072,0.44292366,68449.0,68437.0,0.014617]
[1771689746379,0.44292366,68449.0,68445.0,0.014615]
[1771689746970,0.44392366,68449.0,68437.0,0.014617]
[1771689747276,0.44392366,68449.0,68446.0,0.014615]
[1771689747674,0.44392366,68449.0,68445.0,0.014616]
[1771689747871,0.44292366,68439.0,68428.0,0.00653778]
[1771689748081,0.44292366,68439.0,68432.0,0.014618]
[1771689748280,0.44292366,68439.0,68427.0,0.00018523]
[1771689748281,0.15166686,68437.0,68397.0,0.00911093]
[1771689748470,0.00021552,68435.0,68399.0,0.014625]
[1771689748671,1.99080439,68439.0,68411.0,0.47597877]
[1771689748672,0.5,68439.0,68411.0,0.47597877]
[1771689748880,0.014617,68437.0,68418.0,0.014621]
[1771689749177,0.00012855,68436.0,68408.0,0.014623]
[1771689749367,0.00012855,68436.0,68421.0,0.014621]
[1771689749573,0.00012855,68436.0,68422.0,0.01462]
[1771689749768,0.00012855,68436.0,68425.0,0.01462]
[1771689749983,0.00012855,68436.0,68422.0,0.014621]
[1771689750178,0.00012855,68436.0,68423.0,0.01462]
[1771689750373,0.00012855,68436.0,68421.0,0.014621]
[1771689750575,0.00012855,68436.0,68425.0,0.01462]
[1771689750774,0.00012855,68436.0,68422.0,0.01462]
[1771689751082,0.00012855,68436.0,68423.0,0.01462]
[1771689751083,0.00112855,68436.0,68423.0,0.01462]
[1771689751779,0.00112855,68436.0,68424.0,0.01462]
[1771689751975,0.00112855,68436.0,68421.0,0.014621]
[1771689752186,0.00112855,68436.0,68426.0,0.01462]
[1771689752482,0.00112855,68436.0,68425.0,0.01462]
[1771689752779,0.00112855,68436.0,68427.0,0.014619]
[1771689753171,0.00012855,68436.0,68428.0,0.014619]
[1771689753371,0.014615,68447.0,68427.0,0.014619]
[1771689753372,0.014615,68447.0,68429.0,0.014619]
[1771689753572,0.014615,68449.0,68431.0,0.014619]
[1771689753772,0.014615,68447.0,68429.0,0.014619]
[1771689754085,0.014615,68446.0,68429.0,0.014619]
[1771689754276,0.014615,68446.0,68422.0,0.014621]
[1771689754277,0.014615,68450.0,68432.0,0.014618]
[1771689754476,0.014615,68450.0,68431.0,0.014619]
[1771689754477,0.014615,68448.0,68431.0,0.014619]
[1771689754677,7.123e-05,68449.0,68432.0,0.014618]
[1771689754883,0.0704815,68471.0,68434.0,0.48545517]
[1771689755087,0.0704815,68471.0,68452.0,0.014614]
[1771689755088,0.0850915,68471.0,68452.0,0.014614]
[1771689755282,0.0850915,68471.0,68454.0,0.014614]
[1771689755469,0.01461,68470.0,68453.0,0.014614]
[1771689755672,0.06905909,68469.0,68408.0,0.4854682]
[1771689755879,0.014617,68437.0,68409.0,0.05884867]
[1771689756189,0.014618,68434.0,68418.0,0.014621]
[1771689756385,0.014618,68433.0,68414.0,0.014622]
[1771689756585,0.014619,68432.0,68415.0,0.014622]
[1771689756883,0.014618,68434.0,68418.0,0.014621]
[1771689757076,0.014618,68435.0,68419.0,0.014621]
[1771689757278,0.53993909,68439.0,68417.0,0.07347067]
[1771689757581,0.53993909,68439.0,68421.0,0.014621]
[1771689757582,0.014617,68438.0,68421.0,0.014621]
[1771689757987,0.014617,68437.0,68421.0,0.014621]
[1771689758189,0.53993909,68439.0,68423.0,0.01462]
[1771689758385,0.55455609,68439.0,68423.0,0.01462]
[1771689758587,0.08667609,68439.0,68422.0,0.01462]
[1771689759193,0.014617,68438.0,68422.0,0.014621]
[1771689759384,0.08667609,68439.0,68422.0,0.014621]
[1771689759786,0.46788,68443.0,68396.0,0.51072316]
[1771689759787,0.06897726,68438.0,68396.0,0.51072316]
[1771689760093,0.06797426,68433.0,68416.0,0.014622]
[1771689760276,0.05335626,68433.0,68418.0,0.014621]
[1771689760480,0.05335626,68433.0,68404.0,0.51072316]
[1771689760481,0.01462,68426.0,68410.0,0.014623]
[1771689760792,0.014617,68437.0,68419.0,0.014621]
[1771689760793,0.014618,68435.0,68419.0,0.014621]
[1771689761087,0.014619,68431.0,68415.0,0.014622]
[1771689761388,0.014618,68433.0,68415.0,0.05884867]
[1771689761988,0.014618,68433.0,68417.0,0.014621]
[1771689762191,0.014618,68435.0,68418.0,0.014621]
[1771689762392,0.06554032,68437.0,68420.0,0.014621]
[1771689762393,0.014618,68436.0,68420.0,0.014621]
[1771689762695,0.014618,68435.0,68420.0,0.07346967]
[1771689762988,0.014617,68437.0,68420.0,0.05884867]
[1771689763194,0.014618,68436.0,68420.0,0.05884867]
[1771689763397,0.014618,68436.0,68420.0,0.07346967]
[1771689764298,0.014617,68440.0,68422.0,0.014621]
[1771689764493,1.9582008,68652.0,68425.0,0.01462]
[1771689764494,0.014616,68445.0,68425.0,0.01462]
[1771689764791,0.014617,68441.0,68426.0,0.05884867]
[1771689764992,0.014617,68441.0,68425.0,0.01462]
[1771689765298,0.014617,68440.0,68425.0,0.01462]
[1771689765595,0.014616,68444.0,68423.0,0.07346867]
[1771689765887,0.014616,68444.0,68428.0,0.014619]
[1771689766088,0.014616,68445.0,68429.0,0.014619]
[1771689766296,0.014615,68447.0,68430.0,0.014619]
[1771689766488,0.014615,68447.0,68428.0,0.07346767]
[1771689766688,0.014615,68446.0,68430.0,0.014619]
[1771689766890,0.014615,68446.0,68428.0,0.07346767]
[1771689767097,0.001,68444.0,68431.0,0.014618]
[1771689767394,0.001,68444.0,68430.0,0.014619]
[1771689767590,0.014614,68451.0,68431.0,0.014619]
[1771689767800,0.014614,68451.0,68430.0,0.07346767]
[1771689767801,0.014615,68450.0,68432.0,0.014618]
[1771689767984,0.014614,68455.0,68435.0,0.014618]
[1771689768190,0.014615,68451.0,68434.0,0.014618]
[1771689768391,0.46796,68455.0,68436.0,0.014617]
[1771689768693,0.014615,68450.0,68435.0,0.05884867]